bitfinex/quotes_SOLUSD_20250223
["timestamp","ask_amount","ask_price","bid_price","bid_amount"]
[1740329559488,12.58741441,167.73,167.72,8.79895062]
[1740329560196,26.86634232,167.73,167.72,8.79895062]
[1740329560604,26.86634232,167.73,167.69,20.0]
[1740329560817,26.86634232,167.73,167.72,9.30278622]
[1740329561004,25.86634232,167.73,167.72,9.30278622]
[1740329561426,26.86634232,167.73,167.72,9.30278622]
[1740329561640,43.36446073,167.73,167.72,9.30278622]
[1740329562418,43.36446073,167.73,167.71,9.30278622]
[1740329563000,43.36446073,167.73,167.71,7.50721238]
[1740329563301,42.04600522,167.72,167.71,5.88e-06]
[1740329563500,122.65591578,167.72,167.71,5.88e-06]
[1740329563700,134.24333019,167.72,167.71,5.88e-06]
[1740329563920,134.24333019,167.72,167.71,9.30278622]
[1740329564107,134.24333019,167.72,167.65,9.30278622]
[1740329564307,136.14634232,167.72,167.65,9.30278622]
[1740329564834,30.0,167.66,167.65,9.30278622]
[1740329565126,30.0,167.66,167.62,67.1739]
[1740329565127,8.56e-05,167.63,167.62,67.1739]
[1740329565430,8.56e-05,167.63,167.62,76.47668622]
[1740329565633,29.07680818,167.65,167.62,76.47668622]
[1740329565823,42.37591578,167.63,167.62,67.1739]
[1740329565998,39.86542947,167.63,167.62,17.93124821]
[1740329566335,39.86542947,167.63,167.62,27.23403443]
[1740329567318,56.36354788,167.63,167.62,20.0]
[1740329567829,56.36354788,167.63,167.6,3.01211463]
[1740329568339,56.36354788,167.63,167.62,17.67978596]
[1740329568511,12.32021404,167.62,167.58,9.30278622]
[1740329569431,30.0,167.6,167.58,9.30278622]
[1740329570936,30.0,167.6,167.58,12.27496165]
[1740329571943,30.0,167.6,167.59,20.0]
[1740329572319,30.0,167.6,167.58,12.27496165]
[1740329572745,30.0,167.6,167.58,9.30278622]
[1740329572914,30.0,167.6,167.58,12.24361588]
[1740329573316,30.0,167.6,167.58,11.74361588]
[1740329573622,30.0,167.6,167.59,9.30278622]
[1740329573938,11.64,167.6,167.59,29.30278622]
[1740329574143,6.05,167.6,167.59,29.30278622]
[1740329574445,1.88,167.6,167.59,9.30278622]
[1740329574816,12.32021404,167.62,167.6,20.0]
[1740329575017,12.32021404,167.62,167.61,9.30278622]
[1740329576419,1.18821404,167.62,167.61,9.30278622]
[1740329577631,1.18821404,167.62,167.61,29.30971422]
[1740329578420,1.18821404,167.62,167.61,29.33971422]
[1740329578621,1.18821404,167.62,167.61,9.30971422]
[1740329578824,1.18821404,167.62,167.59,9.30971422]
[1740329579120,1.18821404,167.62,167.58,13.82971422]
[1740329579624,1.18821404,167.62,167.59,9.30971422]
[1740329580420,1.18821404,167.62,167.58,13.82971422]
[1740329580623,10.49792826,167.62,167.6,20.0]
[1740329583029,19.8378629,167.62,167.61,20.0]
[1740329584721,18.64964886,167.61,167.57,9.30971422]
[1740329585031,27.95936308,167.61,167.56,12.32655092]
[1740329585235,18.64964886,167.59,167.56,3.0168367]
[1740329586759,18.64964886,167.59,167.58,20.0]
[1740329587232,18.64964886,167.59,148.16,1.43622449]
[1740329587233,27.95936308,167.59,167.54,9.30971422]
[1740329588821,138.29936308,167.59,167.54,9.30971422]
[1740329590469,138.29936308,167.59,167.54,12.34285895]
[1740329590648,128.98964886,167.59,167.55,9.30971422]
[1740329592265,138.29936308,167.59,167.54,12.34285895]
[1740329593543,128.98964886,167.59,167.49,4.52]
[1740329593741,128.98964886,167.59,167.56,9.30971422]
[1740329594043,128.98964886,167.59,167.55,9.30971422]
[1740329594369,128.98964886,167.59,167.56,9.30971422]
[1740329597053,128.98964886,167.59,167.55,12.32249378]
[1740329598368,138.29936308,167.59,167.57,20.0]
[1740329599553,138.29936308,167.59,167.54,9.30971422]
[1740329601274,128.98964886,167.59,167.55,9.30971422]
[1740329601873,129.05264886,167.59,167.55,9.30971422]
[1740329602959,138.36236308,167.59,167.57,20.0]
[1740329603773,18.64964886,167.57,167.52,9.30971422]
[1740329603940,9.30971422,167.54,167.49,9.30971422]
[1740329604140,18.64964886,167.53,167.49,9.30971422]
[1740329604355,9.30971422,167.53,167.48,9.30971422]
[1740329605152,9.30971422,167.53,167.5,14.9253]
[1740329605358,9.30971422,167.53,167.5,34.9253]
[1740329605656,18.64964886,167.54,167.5,34.9253]
[1740329605657,9.30971422,167.52,167.5,34.9253]
[1740329605861,9.30971422,167.53,167.5,34.9253]
[1740329606280,1.0,167.5,167.39,7.5102]
[1740329606464,9.30971422,167.48,167.43,9.33971422]
[1740329607482,9.30971422,167.48,167.43,0.03]
[1740329607689,9.30971422,167.48,167.43,9.33971422]
[1740329607977,9.30971422,167.49,167.44,9.30971422]
[1740329608464,13.82971422,167.5,167.45,9.30971422]
[1740329608794,9.30971422,167.49,167.44,30.21181422]
[1740329609755,4.52,167.51,167.47,29.30971422]
[1740329610962,4.52,167.51,167.48,5.9708]
[1740329612965,4.52,167.51,167.48,20.8979]
[1740329614247,4.52,167.51,167.47,9.30971422]
[1740329616759,4.52,167.51,167.48,20.8979]
[1740329620289,4.52,167.51,167.47,9.30971422]
[1740329621781,4.52,167.51,167.48,20.8979]
[1740329623767,4.52,167.51,167.48,30.20761422]
[1740329624089,110.42,167.52,167.5,9.30971422]
[1740329624298,110.42,167.52,167.51,9.30971422]
[1740329624795,21.429,167.56,167.51,9.30971422]
[1740329625089,114.94,167.58,167.55,9.30971422]
[1740329626188,114.94,167.58,167.56,5.968]
[1740329627384,114.94,167.58,167.48,74.64577222]
[1740329627385,124.24971422,167.58,167.53,9.30971422]
[1740329627579,9.30971422,167.55,167.51,2.92102932]
[1740329627786,19.64964886,167.57,167.5,9.30971422]
[1740329627985,9.30971422,167.55,167.5,9.30971422]
[1740329628176,9.30971422,167.54,167.49,12.35708254]
[1740329628363,27.95936308,167.55,167.5,9.30971422]
[1740329629689,27.95936308,167.55,167.51,5.9697]
[1740329630104,9.30971422,167.54,167.51,5.9697]
[1740329630282,22.54821422,167.53,167.52,20.0]
[1740329630479,18.64964886,167.52,167.48,5.9708]
[1740329630808,9.30971422,167.5,167.48,5.9708]
[1740329631112,13.82971422,167.52,167.48,5.9708]
[1740329631291,13.82971422,167.52,167.48,20.8979]
[1740329631609,23.16964886,167.52,167.48,30.20761422]
[1740329632210,32.47936308,167.52,167.48,20.8979]
[1740329633300,9.30971422,167.51,167.48,20.8979]
[1740329634013,119.70971422,167.51,167.48,14.9271]
[1740329634805,30.0,167.49,167.48,14.9271]
[1740329635118,30.0,167.49,167.48,20.0]
[1740329635911,30.0,167.49,167.47,9.30971422]
[1740329636309,30.0,167.49,167.48,25.9708]
[1740329638810,118.4436,167.54,167.51,20.0]
[1740329638985,118.4436,167.54,167.51,29.30971422]
[1740329639402,110.42,167.54,167.51,29.30971422]
[1740329640098,110.42,167.54,167.51,20.8941]
[1740329640607,119.72971422,167.54,167.51,20.8941]
[1740329641108,119.72971422,167.54,167.51,14.9244]
[1740329643822,110.42,167.54,167.51,14.9244]
[1740329644017,110.42,167.54,167.48,20.0]
[1740329644224,110.42,167.54,167.51,9.30971422]
[1740329644532,110.42,167.54,167.53,9.30971422]
[1740329644695,110.42,167.54,167.52,9.30971422]
[1740329645198,119.72971422,167.54,167.5,5.9701]
[1740329645719,119.72971422,167.54,167.5,20.8954]
[1740329646925,110.42,167.54,167.5,20.8954]
[1740329647307,110.42,167.54,167.5,30.20511422]
[1740329647513,110.42,167.54,167.52,5.9694]
[1740329648738,110.42,167.54,167.51,5.9697]
[1740329649029,110.42,167.54,167.51,15.27941422]
[1740329649333,110.42,167.54,167.51,30.20381422]
[1740329649633,110.42,167.54,167.52,9.30971422]
[1740329649993,110.42,167.54,167.51,20.8941]
[1740329649994,79.5307,167.54,167.53,9.30971422]
[1740329650197,12.4867,167.57,167.53,9.30971422]
[1740329650414,12.4867,167.57,167.54,9.30971422]
[1740329651233,12.4867,167.57,167.55,5.9683]
[1740329652636,12.4867,167.57,167.54,14.9217]
[1740329652811,12.4867,167.57,167.54,20.8904]
[1740329653006,8.0239,167.58,167.54,30.20011422]
[1740329653414,17.33361422,167.58,167.54,20.8904]
[1740329653819,9.30971422,167.57,167.54,20.8904]
[1740329654020,9.30971422,167.55,167.54,5.9687]
[1740329654334,9.30971422,167.55,167.52,5.9694]
[1740329654514,9.30971422,167.54,167.52,5.9694]
[1740329655024,9.30971422,167.54,167.51,14.9237]
[1740329655227,12.6523,167.56,167.49,9.30971422]
[1740329655432,9.30971422,167.54,167.49,9.30971422]
[1740329656222,9.30971422,167.55,167.5,5.9701]
[1740329656534,12.6523,167.56,167.52,9.30971422]
[1740329656733,8.0239,167.58,167.52,9.30971422]
[1740329656734,21.85361422,167.58,167.52,9.30971422]
[1740329656933,21.85361422,167.58,167.53,20.0]
[1740329657109,21.85361422,167.58,167.53,29.30971422]
[1740329657427,9.30971422,167.57,167.54,20.0]
[1740329657835,9.30971422,167.56,167.51,9.30971422]
[1740329658213,9.30971422,167.56,167.52,5.9694]
[1740329658737,9.30971422,167.57,167.52,20.8929]
[1740329659130,9.30971422,167.56,167.52,20.8929]
[1740329659457,9.30971422,167.56,167.52,5.9694]
[1740329659628,1.0,167.56,167.52,5.9694]
[1740329659830,40.23006308,167.53,167.49,14.9255]
[1740329660057,9.30971422,167.52,167.5,5.9701]
[1740329660233,9.30971422,167.52,167.49,20.0]
[1740329660434,9.30971422,167.52,167.47,20.8992]
[1740329660647,17.60761422,167.52,167.47,20.8992]
[1740329661146,9.30971422,167.51,167.47,20.8992]
[1740329661339,9.30971422,167.49,167.47,5.9712]
[1740329661546,9.30971422,167.49,167.47,20.0]
[1740329663239,9.30971422,167.49,167.47,20.03]
[1740329663435,12.8179,167.52,167.48,5.9708]
[1740329663637,12.8179,167.52,167.48,15.28051422]
[1740329664151,12.8179,167.52,167.48,5.9708]
[1740329664465,12.8179,167.52,167.48,15.28051422]
[1740329664756,12.8179,167.52,167.48,30.20761422]
[1740329665126,4.52,167.52,167.48,30.20761422]
[1740329665330,0.063,167.54,167.5,9.30971422]
[1740329665632,0.063,167.54,167.51,29.30971422]
[1740329666045,0.063,167.54,167.51,20.0]
[1740329667432,0.063,167.54,167.52,5.9694]
[1740329670754,0.063,167.54,167.5,9.30971422]
[1740329671939,0.063,167.54,167.49,9.30971422]
[1740329672255,0.063,167.54,167.5,2.96857626]
[1740329673153,0.063,167.54,167.51,20.8941]
[1740329673864,0.063,167.54,167.51,30.20381422]
[1740329675162,0.063,167.54,167.51,20.8941]
[1740329676652,0.063,167.54,167.51,20.0]
[1740329676859,0.063,167.54,167.5,9.30971422]
[1740329677160,0.063,167.54,167.49,9.30971422]
[1740329678656,0.063,167.54,167.5,20.8954]
[1740329678873,0.063,167.54,167.5,23.84933771]
[1740329679161,0.063,167.54,167.5,33.15905193]
[1740329679851,0.063,167.54,167.5,32.96974893]
[1740329682566,0.063,167.54,167.52,9.30971422]
[1740329682766,0.063,167.59,167.53,9.30971422]
[1740329682951,9.30971422,167.63,167.57,9.30971422]
[1740329683150,30.59131422,167.64,167.59,9.30971422]
[1740329683667,9.30971422,167.63,167.58,9.30971422]
[1740329683964,10.56092826,167.62,167.57,9.30971422]
[1740329684169,10.56092826,167.62,167.56,9.30971422]
[1740329684667,9.30971422,167.61,167.56,9.30971422]
[1740329684855,9.30971422,167.61,167.57,20.8867]
[1740329686563,10.56092826,167.62,167.57,9.30971422]
[1740329687270,1.25121404,167.62,167.58,9.30971422]
[1740329688453,0.063,167.61,167.58,9.30971422]
[1740329688744,0.063,167.61,167.59,5.9669]
[1740329691574,0.063,167.61,167.55,20.0]
[1740329691758,0.063,167.61,167.59,9.30971422]
[1740329693351,0.063,167.61,167.58,20.0]
[1740329694566,0.063,167.61,167.59,5.9669]
[1740329694951,9.30971422,167.6,167.55,14.9204]
[1740329695168,9.30971422,167.58,167.56,5.968]
[1740329696275,9.30971422,167.57,167.56,5.968]
[1740329696669,9.30971422,167.57,167.52,14.9228]
[1740329696859,21.344,167.58,167.54,20.0]
[1740329697060,9.30971422,167.56,167.54,20.0]
[1740329698976,26.75,167.55,167.54,20.0]
[1740329699474,26.75,167.55,167.51,9.30971422]
[1740329699649,9.30971422,167.54,167.49,9.30971422]
[1740329699987,26.75,167.55,167.4,146.48749851]
[1740329699988,9.30971422,167.53,167.51,20.0]
[1740329700177,9.30971422,167.54,167.51,20.0]
[1740329700977,36.05971422,167.55,167.51,20.0]
[1740329701153,36.05971422,167.55,167.5,9.30971422]
[1740329701652,36.05971422,167.55,167.5,12.24047618]
[1740329701852,9.30971422,167.53,167.51,20.0]
[1740329702152,9.30971422,167.54,167.51,20.0]
[1740329703158,36.05971422,167.55,167.51,20.0]
[1740329703357,36.05971422,167.55,167.5,12.24047618]
[1740329703664,36.05971422,167.55,167.51,9.30971422]
[1740329703665,26.75,167.55,167.51,9.30971422]
[1740329704786,26.75,167.55,167.52,9.30971422]
[1740329704999,26.75,167.55,167.51,9.30971422]
[1740329706096,36.05971422,167.55,167.5,12.35905675]
[1740329706474,27.95936308,167.54,167.52,20.0]
[1740329706985,27.95936308,167.53,167.5,3.04934253]
[1740329707193,27.95936308,167.53,167.51,20.0]
[1740329707363,18.64964886,167.53,167.51,20.0]
[1740329708496,18.64964886,167.53,167.52,20.0]
[1740329709196,27.95936308,167.53,167.51,20.0]
[1740329709401,27.95936308,167.53,167.48,9.30971422]
[1740329710998,18.64964886,167.53,167.49,9.30971422]
[1740329713004,4.52,167.54,167.51,9.30971422]
[1740329713188,4.52,167.54,167.5,2.97347615]
[1740329713189,4.52,167.54,167.5,12.28319037]
[1740329713390,23.16964886,167.54,167.5,12.28319037]
[1740329715408,23.16964886,167.54,167.5,9.30971422]
[1740329716300,26.75,167.55,167.51,12.23300889]
[1740329716602,31.27,167.55,167.51,12.23300889]
[1740329717108,26.75,167.55,167.51,12.23300889]
[1740329718288,27.95936308,167.54,167.51,2.92329467]
[1740329719112,9.30971422,167.53,167.48,9.30971422]
[1740329719407,9.30971422,167.53,167.51,20.0]
[1740329721308,18.64964886,167.52,167.48,9.30971422]
[1740329722613,18.64964886,167.52,167.5,3.05908343]
[1740329724412,18.64964886,167.52,167.51,20.0]
[1740329727215,18.71264886,167.54,167.48,9.30971422]
[1740329727401,18.64964886,167.52,167.5,2.9746708]
[1740329729513,28.02236308,167.54,167.52,20.0]
[1740329732317,18.71264886,167.54,167.53,20.0]
[1740329733319,18.71264886,167.54,167.5,12.30857787]
[1740329733622,18.71264886,167.54,167.51,20.8941]
[1740329737937,28.02236308,167.54,167.51,20.8941]
[1740329738644,9.30971422,167.53,167.51,5.9697]
[1740329739137,9.30971422,167.53,167.51,20.0]
[1740329741747,26.75,167.55,167.52,20.0]
[1740329741923,26.75,167.55,167.54,9.30971422]
[1740329742116,31.27,167.55,167.54,9.30971422]
[1740329742726,31.21363636,167.55,167.54,9.30971422]
[1740329743620,31.21363636,167.55,167.54,15.27841422]
[1740329745658,3.636e-05,167.55,167.54,15.27841422]
[1740329745857,9.37271422,167.61,167.57,20.0]
[1740329746040,4.52,167.6,167.57,9.30971422]
[1740329746232,4.52,167.59,167.57,9.30971422]
[1740329746434,4.52,167.59,167.55,9.30971422]
[1740329746832,4.52,167.59,167.56,9.30971422]
[1740329747461,4.52,167.59,167.56,12.32929651]
[1740329747765,4.52,167.59,167.56,3.01958229]
[1740329748060,4.52,167.59,167.58,20.0]
[1740329748857,4.52,167.59,167.58,25.9672]
[1740329751173,4.52,167.59,167.55,9.30971422]
[1740329751542,13.82971422,167.59,167.55,9.30971422]
[1740329752759,13.82971422,167.59,167.56,14.9199]
[1740329753175,13.82971422,167.59,167.58,20.0]
[1740329754271,4.52,167.59,167.58,20.0]
[1740329754479,4.52,167.59,167.58,25.9672]
[1740329756976,4.52,167.59,167.55,9.30971422]
[1740329759273,4.52,167.59,167.56,2.99659471]
[1740329759774,4.52,167.59,167.56,23.88449471]
[1740329762447,13.82971422,167.59,167.56,23.88449471]
[1740329762988,13.82971422,167.59,167.55,9.30971422]
[1740329763657,13.82971422,167.59,167.56,3.02603673]
[1740329764065,13.82971422,167.59,167.57,5.9676]
[1740329766397,4.52,167.59,167.57,5.9676]
[1740329768803,4.52,167.59,167.55,9.30971422]
[1740329769879,13.82971422,167.59,167.57,20.0]
[1740329770201,27.95936308,167.58,167.57,20.0]
[1740329770367,21.1149,167.57,167.5,9.30971422]
[1740329770572,9.30971422,167.55,167.5,9.30971422]
[1740329770793,9.30971422,167.55,167.52,20.0]
[1740329770999,9.30971422,167.55,167.54,20.0]
[1740329772599,9.30971422,167.55,167.51,20.8941]
[1740329772894,9.30971422,167.54,167.53,20.0]
[1740329773800,9.30971422,167.54,167.49,0.72141592]
[1740329774103,18.64964886,167.56,167.49,9.30971422]
[1740329774310,18.64964886,167.56,167.5,9.30971422]
[1740329775603,18.64964886,167.56,167.51,3.04897191]
[1740329775906,18.64964886,167.56,167.51,23.94307191]
[1740329780021,18.64964886,167.56,167.54,25.9683]
[1740329780223,18.64964886,167.56,167.5,9.30971422]
[1740329780520,18.64964886,167.56,167.51,2.93011316]
[1740329781424,0.03995953,167.55,167.52,5.9694]
[1740329785722,0.03995953,167.55,167.5,5.9701]
[1740329786635,0.03995953,167.55,167.51,20.0]
[1740329788237,0.03995953,167.55,167.52,5.9694]
[1740329790028,20.1815,167.53,167.49,0.03]
[1740329790236,18.64964886,167.51,167.5,5.97]
[1740329791235,27.95936308,167.51,167.49,0.03]
[1740329791422,27.95936308,167.5,167.49,0.03]
[1740329794046,28.95936308,167.5,167.49,0.03]
[1740329794744,28.95936308,167.5,167.45,5.9719]
[1740329794745,19.64964886,167.49,167.45,5.9719]
[1740329794920,19.64964886,167.49,167.45,20.0]
[1740329795321,18.64964886,167.46,167.45,20.0]
[1740329795521,23.14964886,167.46,167.45,20.0]
[1740329796650,23.14964886,167.46,167.45,25.9719]
[1740329797547,32.45936308,167.46,167.45,25.93194047]
[1740329797731,32.45936308,167.46,167.45,5.9719]
[1740329798641,32.45936308,167.46,167.43,5.9726]
[1740329799850,32.45936308,167.46,167.44,0.03]
[1740329800650,23.14964886,167.46,167.31,115.43653121]
[1740329800950,9.30971422,167.44,167.39,9.30971422]
[1740329801120,9.30971422,167.44,167.42,20.0]
[1740329802168,9.30971422,167.44,167.43,5.9726]
[1740329802965,48.79726308,167.44,167.43,5.9726]
[1740329804380,39.48754886,167.44,167.43,5.9726]
[1740329807561,39.48754886,167.44,167.4,9.30971422]
[1740329807970,39.48754886,167.44,167.39,9.30971422]
[1740329808492,39.48754886,167.44,167.4,20.9079]
[1740329808679,39.48754886,167.44,167.4,30.21761422]
[1740329811069,48.79726308,167.44,167.4,20.9079]
[1740329812392,48.86026308,167.44,167.4,20.9079]
[1740329813494,39.55054886,167.44,167.42,20.0]
[1740329813698,48.86026308,167.44,167.42,20.0]
[1740329814993,18.64964886,167.43,167.42,20.0]
[1740329815505,0.063,167.44,167.42,29.30971422]
[1740329815690,0.063,167.44,167.43,9.30971422]
[1740329817700,0.063,167.44,167.43,15.28231422]
[1740329819376,0.063,167.44,167.43,9.30971422]
[1740329820378,0.063,167.44,167.43,5.9726]
[1740329820604,28.02236308,167.44,167.43,5.9726]
[1740329820979,18.71264886,167.44,167.43,5.9726]
[1740329821613,18.71264886,167.44,167.4,24.24311422]
[1740329821785,18.71264886,167.44,167.41,5.9733]
[1740329822720,18.71264886,167.44,167.41,20.9066]
[1740329824324,28.02236308,167.44,167.41,20.9066]
[1740329824710,18.71264886,167.44,167.41,20.9066]
[1740329825225,18.71264886,167.44,167.4,9.30971422]
[1740329825433,18.71264886,167.44,167.4,29.30971422]
[1740329825816,28.02236308,167.44,167.39,9.30971422]
[1740329826006,28.02236308,167.44,167.39,12.34951741]
[1740329826625,28.02236308,167.44,167.4,5.9737]
[1740329827218,28.02236308,167.44,167.4,20.9079]
[1740329831246,28.02236308,167.44,167.39,9.30971422]
[1740329831412,18.71264886,167.44,167.39,9.30971422]
[1740329832610,18.71264886,167.44,167.4,5.9737]
[1740329833039,18.71264886,167.44,167.4,20.9079]
[1740329834804,27.95936308,167.43,167.4,5.9737]
[1740329835817,27.95936308,167.43,167.39,6.004]
[1740329837236,27.95936308,167.43,167.41,20.0]
[1740329838024,28.95936308,167.43,167.41,20.0]
[1740329838340,18.64964886,167.41,167.4,20.0]
[1740329838513,23.16964886,167.41,167.4,20.0]
[1740329839843,23.16964886,167.41,167.4,25.9737]
[1740329843025,23.16964886,167.41,167.37,9.30971422]
[1740329844951,23.16964886,167.41,167.38,5.9744]
[1740329845246,23.16964886,167.41,167.4,20.0]
[1740329846149,23.16964886,167.41,167.38,5.9744]
[1740329846150,2.0,167.4,167.38,5.9744]
[1740329846453,9.30971422,167.39,167.38,5.9744]
[1740329846627,18.64964886,167.38,167.36,20.0]
[1740329846822,18.64964886,167.38,167.35,14.9386]
[1740329847950,18.64964886,167.38,167.35,20.9141]
[1740329848532,27.95936308,167.38,167.35,20.9141]
[1740329848954,18.64964886,167.38,167.35,14.9386]
[1740329850162,18.64964886,167.38,167.35,20.9141]
[1740329850530,18.64964886,167.38,167.35,30.22381422]
[1740329850932,19.64964886,167.38,167.35,30.22381422]
[1740329851151,19.64964886,167.38,167.35,14.9386]
[1740329851350,1.0,167.37,167.35,14.9386]
[1740329851556,19.64964886,167.38,167.35,14.9386]
[1740329852162,1.0,167.37,167.36,20.0]
[1740329852767,1.0,167.39,167.36,29.30971422]
[1740329852935,1.0,167.38,167.36,9.30971422]
[1740329853275,19.64964886,167.39,167.38,25.9744]
[1740329853435,28.95936308,167.39,167.38,5.9744]
[1740329853629,29.95936308,167.39,167.38,5.9744]
[1740329854291,1.0,167.37,167.36,20.0]
[1740329855285,1.0,167.37,167.36,25.9751]
[1740329857995,1.0,167.37,167.34,9.30971422]
[1740329858177,1.0,167.33,167.3,2.95163103]
[1740329858381,5.52,167.33,167.29,9.30971422]
[1740329858575,1.0,167.32,167.29,12.23892553]
[1740329858777,5.52,167.33,167.29,12.23892553]
[1740329859296,1.0,167.32,167.31,9.30971422]
[1740329859599,1.0,167.34,167.31,15.28661422]
[1740329859979,4.52,167.35,167.33,9.30971422]
[1740329860189,4.52,167.35,167.34,29.30971422]
[1740329860497,4.52,167.35,167.34,20.0]
[1740329860985,5.52,167.35,167.34,20.0]
[1740329861777,5.52,167.35,167.34,25.9758]
[1740329861971,1.0,167.31,167.3,5.977]
[1740329862175,1.0,167.3,167.27,5.9783]
[1740329862802,1.0,167.3,167.27,8.94702614]
[1740329863003,10.30971422,167.3,167.29,20.0]
[1740329863303,1.845e-05,167.19,167.18,18.64964886]
[1740329864200,1.845e-05,167.19,167.18,24.63114886]
[1740329864392,1.845e-05,167.19,167.18,5.9815]
[1740329864591,1.845e-05,167.19,167.18,15.29121422]
[1740329865681,1.0,167.27,167.25,9.30971422]
[1740329866076,9.30971422,167.26,167.19,20.9342]
[1740329866278,1.0,167.25,167.22,9.30971422]
[1740329866492,5.52,167.26,167.24,9.30971422]
[1740329867894,240.1504,167.29,167.25,9.30971422]
[1740329868202,218.6,167.28,167.26,20.0]
[1740329868407,136.3,167.28,167.19,18.64964886]
[1740329868581,218.6,167.27,167.19,18.64964886]
[1740329868902,218.6,167.27,167.25,2.99563077]
[1740329869811,218.6,167.27,167.26,9.30971422]
[1740329874296,218.663,167.27,167.26,9.30971422]
[1740329878721,1.94490736,167.18,167.17,41.94032765]
[1740329879022,136.36106954,167.26,167.17,32.60039301]
[1740329879523,136.36106954,167.26,167.25,9.30971422]
[1740329879839,105.16206954,167.26,167.25,9.30971422]
[1740329880722,101.60106954,167.26,167.18,17.94]
[1740329881024,0.063,167.27,167.25,9.30971422]
[1740329881207,0.063,167.27,167.26,9.30971422]
[1740329884921,69.9985416,167.19,167.18,17.94]
[1740329885129,207.2985416,167.26,167.18,12.28829999]
[1740329885421,207.2985416,167.26,167.24,9.30971422]
[1740329885801,207.2985416,167.26,167.25,9.30971422]
[1740329886600,207.2985416,167.26,167.25,9.33971422]
[1740329886927,207.2985416,167.26,167.25,0.03]
[1740329887726,207.2985416,167.26,167.25,9.33971422]
[1740329887921,207.2985416,167.26,167.25,0.03]
[1740329888110,236.25790468,167.26,167.25,0.03]
[1740329890625,55.4315816,167.15,167.11,17.94]
[1740329890815,93.34564737,167.14,167.13,20.0]
[1740329891131,28.09129473,167.14,167.13,22.93400705]
[1740329891421,16.12552369,167.15,167.13,32.24372127]
[1740329891601,1.0,167.21,167.13,32.24372127]
[1740329891803,218.6,167.2,167.13,32.24372127]
[1740329892332,218.6,167.2,167.13,37.51980784]
[1740329892801,218.6,167.2,167.19,9.30971422]
[1740329893825,68.2251642,167.2,167.19,9.30971422]
[1740329894028,41.43871803,167.2,167.19,9.30971422]
[1740329894218,26.78644617,167.2,167.19,9.30971422]
[1740329894410,14.65227186,167.2,167.19,9.30971422]
[1740329894724,2.51809754,167.2,167.19,9.30971422]
[1740329894902,1e-08,167.2,167.19,9.30971422]
[1740329895102,1e-08,167.2,167.15,50.0]
[1740329895340,21.06000001,167.2,167.19,9.30971422]
[1740329895529,21.06000001,167.2,167.18,9.30971422]
[1740329895827,21.06000001,167.2,167.19,20.0]
[1740329896038,1.0,167.17,167.15,9.30971422]
[1740329896202,1.0,167.17,167.14,9.30971422]
[1740329896605,1.0,167.18,167.15,9.30971422]
[1740329897343,1.0,167.17,167.15,9.30971422]
[1740329897627,1.0,167.18,167.17,20.0]
[1740329898732,1.0,167.18,167.16,9.30971422]
[1740329899102,1.0,167.18,167.16,29.30971422]
[1740329899307,1.0,167.18,167.16,9.30971422]
[1740329899807,1.0,167.18,167.17,9.30971422]
[1740329900335,1.0,167.19,167.17,9.30971422]
[1740329900936,1.0,167.18,167.17,9.30971422]
[1740329901531,1.0,167.18,167.16,29.30971422]
[1740329901724,1.0,167.17,167.16,29.30971422]
[1740329901922,21.06000001,167.2,167.16,29.30971422]
[1740329902119,52.99028578,167.15,167.13,8.29743565]
[1740329902320,136.08478366,167.19,167.14,9.30971422]
[1740329902527,136.08478366,167.19,167.18,9.30971422]
[1740329904423,136.08478366,167.19,167.17,9.30971422]
[1740329905130,136.08478366,167.19,167.18,20.0]
[1740329905331,1.0,167.18,167.16,9.30971422]
[1740329905725,1.0,167.18,167.15,9.30971422]
[1740329905925,1.0,167.18,167.17,20.0]
[1740329906125,137.08478366,167.19,167.17,20.0]
[1740329906323,137.08478366,167.19,167.18,20.0]
[1740329906934,1.0,167.18,167.16,29.30971422]
[1740329908019,1.0,167.18,167.17,9.30971422]
[1740329908221,1.0,167.18,167.13,8.38129151]